bitfinex-derivatives/quotes_BTCF0:USTF0_20210102
["timestamp","ask_amount","ask_price","bid_price","bid_amount"]
[1609566505545,1.00041248,29533.0,29527.0,0.00037268]
[1609566505747,5.5667,29528.0,29522.0,1.80590163]
[1609566506145,6.5667,29528.0,29523.0,0.04125241]
[1609566506346,0.00041254,29527.0,29523.0,0.04162514]
[1609566506546,0.00041254,29527.0,29523.0,0.00037273]
[1609566506746,0.00041254,29527.0,29524.0,0.00037275]
[1609566507347,0.00041254,29527.0,29523.0,0.00037277]
[1609566507547,0.00041254,29527.0,29525.0,0.00037277]
[1609566507949,0.00041254,29527.0,29524.0,0.00037277]
[1609566508150,0.18043158,29525.0,29521.0,0.11272]
[1609566508350,0.10121258,29524.0,29522.0,0.00037278]
[1609566508559,0.00041258,29524.0,29522.0,0.00037278]
[1609566509150,0.00041258,29524.0,29523.0,0.00037276]
[1609566509751,0.00041258,29524.0,29522.0,0.0416272]
[1609566509951,0.00041258,29524.0,29523.0,0.00037271]
[1609566510151,1.00041258,29524.0,29523.0,0.18080429]
[1609566510351,1.00041258,29524.0,29523.0,5.13300429]
[1609566510551,1.00041258,29524.0,29523.0,5.17425687]
[1609566510751,1.00041258,29524.0,29523.0,5.17425688]
[1609566511254,1.0,29524.0,29523.0,5.17425688]
[1609566512054,0.18043158,29525.0,29523.0,5.17425688]
[1609566512556,0.18043158,29525.0,29524.0,0.00037272]
[1609566513156,0.18043158,29525.0,29524.0,0.00037271]
[1609566518065,1.18043158,29525.0,29524.0,0.00037271]
[1609566525474,1.18043158,29525.0,29522.0,0.00037222]
[1609566525677,0.102,29524.0,29522.0,0.00037222]
[1609566525876,0.102,29524.0,29521.0,0.11272]
[1609566526078,0.102,29524.0,29523.0,0.00037222]
[1609566526278,0.102,29524.0,29522.0,0.00037222]
[1609566526478,0.102,29524.0,29520.0,0.00037222]
[1609566526878,0.102,29524.0,29523.0,0.00037222]
[1609566527078,0.102,29524.0,29521.0,0.00037222]
[1609566527279,0.102,29524.0,29521.0,5.2201]
[1609566527678,0.102,29524.0,29522.0,0.00037224]
[1609566528079,1.0,29523.0,29522.0,0.00037224]
[1609566528982,1.0,29523.0,29522.0,3.95827224]
[1609566529181,1.0,29523.0,29522.0,3.9579]
[1609566529381,1.0,29523.0,29522.0,3.95827224]
[1609566529982,1.0,29523.0,29522.0,3.95377224]
[1609566530584,1.0,29523.0,29522.0,3.94817224]
[1609566530787,1.0,29523.0,29522.0,3.9478]
[1609566530985,1.0,29523.0,29522.0,3.94817224]
[1609566532089,1.0,29523.0,29522.0,3.92427224]
[1609566534392,1.0,29523.0,29522.0,3.89077224]
[1609566536494,1.0,29523.0,29522.0,3.8904]
[1609566536794,1.0,29523.0,29522.0,3.89077222]
[1609566541505,1.0,29523.0,29522.0,3.8904]
[1609566541707,1.0,29523.0,29522.0,3.89077221]
[1609566546111,0.18043158,29525.0,29522.0,3.89077221]
[1609566546511,0.00041255,29524.0,29523.0,0.00037221]
[1609566548216,1.00041255,29524.0,29523.0,0.00037221]
[1609566548615,1.00041255,29524.0,29520.0,0.00037224]
[1609566548814,1.00041255,29524.0,29523.0,0.00037224]
[1609566549216,1.0,29524.0,29521.0,0.00037224]
[1609566549414,1.00041258,29524.0,29523.0,0.00037224]
[1609566549614,1.00041258,29524.0,29520.0,0.00037224]
[1609566549814,1.00041258,29524.0,29523.0,0.00037224]
[1609566550114,0.00041258,29524.0,29520.0,0.00037224]
[1609566550413,0.00041258,29524.0,29523.0,0.00037224]
[1609566550614,0.00041258,29524.0,29521.0,0.00037224]
[1609566550917,0.00041258,29526.0,29520.0,0.00037224]
[1609566551215,0.00041258,29523.0,29522.0,0.00037224]
[1609566551415,0.00041258,29525.0,29522.0,0.00037224]
[1609566551616,0.00041258,29525.0,29521.0,0.00037224]
[1609566551818,0.00041258,29523.0,29522.0,0.00037224]
[1609566552015,0.00468737,29524.0,29522.0,0.00037224]
[1609566552214,0.00041258,29523.0,29520.0,0.00037224]
[1609566552516,0.18043158,29521.0,29519.0,3.99713158]
[1609566553017,0.00041258,29520.0,29519.0,3.99713158]
[1609566553617,0.00041258,29520.0,29519.0,3.99750382]
[1609566554118,0.18043158,29521.0,29519.0,3.99750382]
[1609566554320,0.18043158,29521.0,29520.0,0.00037224]
[1609566554821,0.18084417,29521.0,29520.0,0.00037224]
[1609566556522,0.28304417,29521.0,29520.0,0.00037224]
[1609566557525,0.28304417,29521.0,29519.0,3.99713158]
[1609566557724,0.1029,29520.0,29519.0,3.99713158]
[1609566558024,0.10331259,29520.0,29519.0,3.99713158]
[1609566558225,1.10331259,29520.0,29519.0,3.99750383]
[1609566558726,1.10331259,29520.0,29519.0,3.81707225]
[1609566559324,1.1029,29520.0,29519.0,3.81707225]
[1609566559525,1.10331259,29520.0,29519.0,3.81707225]
[1609566560630,1.10331259,29520.0,29519.0,3.77807225]
[1609566562633,1.10331259,29520.0,29519.0,3.74817225]
[1609566562833,1.10331259,29520.0,29519.0,3.7478]
[1609566563035,1.10331259,29520.0,29519.0,3.74817225]
[1609566563235,1.10331259,29520.0,29519.0,3.7485445]
[1609566567739,1.1029,29520.0,29519.0,3.7485445]
[1609566573443,1.1033126,29520.0,29519.0,3.7485445]
[1609566575246,1.1033126,29520.0,29519.0,0.0007445]
[1609566575646,6.6117126,29520.0,29519.0,0.0007445]
[1609566575847,6.61596964,29520.0,29519.0,0.0007445]
[1609566577149,6.61596964,29520.0,29515.0,0.25995158]
[1609566577547,0.0004126,29519.0,29516.0,0.00037167]
[1609566578049,1.0,29517.0,29516.0,0.00037167]
[1609566578451,1.0004126,29517.0,29516.0,0.00037167]
[1609566578750,1.18084418,29517.0,29516.0,0.00037167]
[1609566583355,1.18084418,29517.0,29516.0,4.14397167]
[1609566584056,0.18084418,29517.0,29516.0,4.14397167]
[1609566585558,0.18084418,29517.0,29516.0,0.00037167]
[1609566585958,4.27054418,29517.0,29516.0,0.00037167]
[1609566586159,5.27054418,29517.0,29516.0,0.00037167]
[1609566588059,4.27054418,29517.0,29516.0,0.00037167]
[1609566588261,5.27054418,29517.0,29516.0,0.00037167]
[1609566593768,5.28090467,29517.0,29516.0,0.00037167]
[1609566594468,5.28517039,29517.0,29516.0,0.00037167]
[1609566596073,5.3014213,29517.0,29516.0,0.00037167]
[1609566598875,5.28517065,29517.0,29516.0,0.00037167]
[1609566599075,5.28517065,29517.0,29515.0,0.17213158]
[1609566599276,5.28517065,29517.0,29515.0,0.15153158]
[1609566599477,0.00041267,29516.0,29515.0,0.15153158]
[1609566599978,0.00041267,29516.0,29515.0,0.15190331]
[1609566600179,1.00041267,29516.0,29515.0,0.15190331]
[1609566600981,1.00041267,29516.0,29515.0,0.00037173]
[1609566601383,1.00041267,29516.0,29513.0,0.00037173]
[1609566601582,1.00041267,29516.0,29512.0,0.18043158]
[1609566601583,1.00041267,29516.0,29515.0,0.00037173]
[1609566601782,0.00041267,29515.0,29514.0,0.00037173]
[1609566602083,0.00041267,29515.0,29513.0,0.00037173]
[1609566602484,0.00041267,29515.0,29514.0,0.00037173]
[1609566602884,0.00041267,29515.0,29513.0,0.00037173]
[1609566603085,0.18043158,29514.0,29512.0,0.18043158]
[1609566603286,0.1014,29513.0,29512.0,0.18043158]
[1609566603488,0.21002,29513.0,29512.0,0.18043158]
[1609566603687,0.21043267,29513.0,29512.0,0.18080331]
[1609566605289,0.21043267,29513.0,29512.0,0.00037173]
[1609566605489,0.21043267,29513.0,29509.0,0.00037173]
[1609566605689,0.21043267,29513.0,29512.0,0.00037173]
[1609566605890,0.21043267,29513.0,29512.0,0.18080331]
[1609566606091,0.21043267,29513.0,29512.0,0.18043158]
[1609566606289,0.21043267,29513.0,29512.0,0.18080331]
[1609566607893,0.39086425,29513.0,29512.0,0.18080331]
[1609566608092,0.39086425,29513.0,29512.0,0.18043158]
[1609566608393,0.39086425,29513.0,29512.0,0.18080333]
[1609566610598,1.14456425,29513.0,29512.0,0.18080333]
[1609566611800,1.14415158,29513.0,29512.0,0.18080333]
[1609566612100,0.96372,29513.0,29512.0,0.00037175]
[1609566612302,0.96413272,29513.0,29504.0,4.4152]
[1609566612704,0.96413272,29513.0,29505.0,0.04164343]
[1609566612904,0.00041272,29512.0,29505.0,0.04164343]
[1609566613104,0.00041272,29512.0,29505.0,0.00037177]
[1609566613504,0.00041272,29512.0,29506.0,0.00037183]
[1609566613907,0.00041272,29512.0,29505.0,0.00037183]
[1609566614105,1.0,29507.0,29505.0,0.00037183]
[1609566614307,0.7591,29506.0,29504.0,4.4152]
[1609566614510,0.7595128,29506.0,29504.0,4.4152]
[1609566614709,0.18084438,29505.0,29504.0,4.4152]
[1609566615311,0.18043158,29505.0,29504.0,4.31557185]
[1609566615914,0.18043158,29505.0,29504.0,4.21317185]
[1609566616115,0.32227158,29505.0,29504.0,4.21317185]
[1609566616315,0.32227158,29505.0,29504.0,0.00037185]
[1609566616715,4.13187158,29505.0,29504.0,0.00037185]
[1609566616913,4.13187158,29505.0,29501.0,0.00037187]
[1609566617111,4.13187158,29505.0,29504.0,0.00037187]
[1609566617312,4.13187158,29505.0,29502.0,0.00037187]
[1609566617611,4.13187158,29505.0,29504.0,0.00037187]
[1609566617812,4.13187158,29505.0,29503.0,0.00037187]
[1609566618113,4.13187158,29505.0,29499.0,0.00037187]
[1609566618313,4.13187158,29505.0,29504.0,0.00037187]
[1609566618614,4.13187158,29505.0,29500.0,0.00037187]
[1609566618914,4.13187158,29505.0,29504.0,0.00037187]
[1609566619116,4.13187158,29505.0,29498.0,5.01473158]
[1609566619414,4.13187158,29505.0,29504.0,0.00037187]
[1609566620015,4.13187158,29505.0,29504.0,0.00074375]
[1609566620216,4.13187158,29505.0,29504.0,0.00037187]
[1609566620516,4.13187158,29505.0,29504.0,0.00074375]
[1609566620716,4.13187158,29505.0,29504.0,0.00037187]
[1609566621117,4.13187158,29505.0,29504.0,0.00074375]
[1609566621317,4.13187158,29505.0,29504.0,0.00037187]
[1609566626123,4.13187158,29505.0,29498.0,5.01473158]
[1609566626524,4.13187158,29505.0,29499.0,0.00037187]
[1609566626724,0.18043158,29500.0,29499.0,0.00037187]
[1609566627024,0.28213158,29500.0,29499.0,0.00037187]
[1609566635634,0.28213158,29500.0,29495.0,0.00037187]
[1609566635835,0.103,29499.0,29495.0,0.00037187]
[1609566636837,0.18043158,29496.0,29495.0,0.00037187]
[1609566639239,0.17837054,29496.0,29495.0,0.00037187]
[1609566641443,0.17837054,29496.0,29495.0,0.04165322]
[1609566641844,0.17837054,29496.0,29495.0,4.81365322]
[1609566644050,0.103,29499.0,29495.0,5.81365322]
[1609566644249,0.14184,29505.0,29495.0,2.04165322]
[1609566644451,0.01449843,29508.0,29502.0,3.9736]
[1609566644649,0.00041281,29504.0,29502.0,3.9736]
[1609566644850,0.00041281,29507.0,29503.0,0.00037144]
[1609566645052,0.14777,29504.0,29503.0,0.18080302]
[1609566645451,0.14818281,29504.0,29503.0,0.18080302]
[1609566646952,0.32861439,29504.0,29503.0,0.18080302]
[1609566647153,0.32861439,29504.0,29503.0,0.00037144]
[1609566647553,0.32861439,29504.0,29500.0,0.04165102]
[1609566647754,0.1004,29503.0,29499.0,1.0]
[1609566648053,0.00041281,29502.0,29499.0,1.0]
[1609566648253,0.00041281,29502.0,29501.0,0.00037144]
[1609566648453,0.00041281,29502.0,29500.0,0.00037144]
[1609566648653,0.00041281,29502.0,29501.0,0.00037144]
[1609566649153,0.00041281,29502.0,29501.0,0.7664]
[1609566649353,0.00041281,29502.0,29501.0,0.76677144]
[1609566651056,0.00041281,29502.0,29501.0,0.94720302]
[1609566652859,0.00041281,29502.0,29501.0,0.94683158]
[1609566653059,0.00041281,29502.0,29501.0,0.94720303]
[1609566656468,0.00041281,29502.0,29501.0,0.18080303]
[1609566657467,0.00041281,29502.0,29501.0,4.95600303]
[1609566657670,0.00041281,29502.0,29501.0,0.18080303]
[1609566658169,0.00041281,29502.0,29501.0,1.18080303]
[1609566670387,4.52331281,29502.0,29501.0,1.18080303]
[1609566671390,0.00041281,29502.0,29501.0,1.18080303]
[1609566672091,5.66771281,29502.0,29501.0,1.18080303]
[1609566672592,0.00041281,29502.0,29501.0,1.18080303]
[1609566675297,0.00041281,29502.0,29501.0,5.43970303]
[1609566676599,0.01500224,29502.0,29501.0,5.43970303]
[1609566683809,0.00466806,29502.0,29501.0,5.43970303]
[1609566684812,0.00466806,29502.0,29501.0,1.18080303]
[1609566686011,0.01501279,29502.0,29501.0,1.18080303]
[1609566690316,0.01501279,29502.0,29501.0,5.08670303]
[1609566690517,0.01501279,29502.0,29501.0,1.18080303]
[1609566691620,0.00466806,29502.0,29501.0,1.18080303]
[1609566692121,0.00466806,29502.0,29501.0,0.18080303]
[1609566692322,0.00041281,29502.0,29501.0,1.18080303]
[1609566706144,0.00041281,29502.0,29501.0,0.18080303]
[1609566709549,0.00466741,29502.0,29501.0,0.18080303]
[1609566710248,0.00466741,29502.0,29501.0,1.18080303]
[1609566711548,0.00466741,29502.0,29501.0,1.00037145]
[1609566712050,0.00466741,29502.0,29501.0,1.18080303]
[1609566716756,0.00466741,29502.0,29501.0,1.22208385]
[1609566717357,0.0042546,29502.0,29501.0,2.22208385]
[1609566717557,0.00466739,29502.0,29501.0,2.18080303]
[1609566717758,0.0042546,29502.0,29501.0,2.22208221]
[1609566717963,0.0042546,29502.0,29501.0,7.45478221]
[1609566718562,0.0042546,29502.0,29501.0,6.45478221]
[1609566718761,0.00426423,29509.0,29501.0,8.2668383]
[1609566719161,0.03086491,29510.0,29501.0,8.2668383]
[1609566719162,0.00426313,29510.0,29502.0,0.0416415]
[1609566719764,0.00041272,29509.0,29502.0,0.0416415]
[1609566719963,0.00426313,29510.0,29502.0,0.0416415]
[1609566720162,0.00426313,29510.0,29509.0,0.18043158]
[1609566720762,0.00467585,29510.0,29509.0,0.18080192]
[1609566720963,0.00426313,29510.0,29509.0,0.18080192]
[1609566721164,0.00426266,29511.0,29509.0,0.18080192]
[1609566721563,0.00426266,29511.0,29510.0,0.00037034]
[1609566721764,0.00467537,29511.0,29510.0,0.00037034]
[1609566726270,0.00467537,29511.0,29510.0,1.00037034]
[1609566726973,0.00426266,29511.0,29510.0,1.00037034]
[1609566728174,0.00426266,29511.0,29510.0,0.00037034]
[1609566728374,0.18043158,29512.0,29510.0,0.00037034]
[1609566731479,0.18043158,29512.0,29510.0,5.46387034]
[1609566731983,0.18043158,29512.0,29511.0,0.00037034]
[1609566732180,0.18043158,29512.0,29511.0,1.00037034]
[1609566745603,0.18084429,29512.0,29511.0,1.00037034]
[1609566754615,0.00041271,29512.0,29511.0,1.00037034]
[1609566777052,0.00468409,29512.0,29511.0,1.00037034]
[1609566777951,0.01506315,29512.0,29511.0,1.00037034]
[1609566778653,0.01079177,29512.0,29511.0,1.00037034]
[1609566782459,0.0046895,29512.0,29511.0,1.00037034]
[1609566787867,0.00041271,29512.0,29511.0,1.00037034]
[1609566795179,0.00041271,29512.0,29511.0,5.71487034]
[1609566800786,0.12328473,29513.0,29511.0,5.71487034]
[1609566801286,0.12328473,29513.0,29512.0,0.00037103]
[1609566801485,0.12328473,29513.0,29512.0,0.18080261]
[1609566801785,0.12369741,29513.0,29512.0,0.18080261]
[1609566802386,0.12369741,29513.0,29512.0,1.18080261]
[1609566805991,0.12328473,29513.0,29512.0,1.18080261]
[1609566810395,0.10862,29513.0,29512.0,1.18080261]
[1609566811197,0.0147451,29515.0,29512.0,1.18080261]
[1609566811497,0.00041266,29514.0,29513.0,0.00037101]
[1609566811797,0.0147451,29515.0,29513.0,0.00037101]
[1609566812097,0.00430065,29515.0,29513.0,0.00037101]
[1609566812296,0.00430065,29515.0,29513.0,1.00037101]
[1609566812801,0.00430065,29515.0,29514.0,0.00037101]
[1609566813297,0.00471331,29515.0,29514.0,0.00037101]
[1609566813497,0.00041266,29515.0,29514.0,0.00037101]
[1609566823520,0.00041266,29515.0,29514.0,0.77897101]
[1609566824315,0.00041266,29515.0,29514.0,1.77897101]
[1609566834033,0.18043158,29516.0,29514.0,1.77897101]
[1609566834437,0.18043158,29516.0,29515.0,0.00037101]
[1609566834837,0.18084422,29516.0,29515.0,0.00037101]
[1609566836037,0.18084422,29516.0,29515.0,0.18080259]
[1609566836243,0.18084422,29516.0,29515.0,1.18080259]
[1609566846850,0.18084422,29516.0,29515.0,5.38730259]
[1609566848753,0.18084422,29516.0,29515.0,5.4285648]
[1609566850955,0.18084422,29516.0,29515.0,1.2220648]
[1609566862073,0.18084422,29516.0,29515.0,1.18080259]
[1609566862272,4.24574422,29516.0,29515.0,0.18080259]
[1609566863073,4.24574422,29516.0,29515.0,0.00037101]
[1609566863377,4.24574422,29516.0,29510.0,0.04163478]
[1609566863674,0.00041264,29515.0,29510.0,0.04163478]
[1609566864675,0.00041264,29515.0,29511.0,0.18043158]
[1609566864977,0.00041264,29515.0,29512.0,0.041636]
[1609566865276,0.00041264,29515.0,29512.0,0.00037099]
[1609566865477,0.00041264,29515.0,29513.0,0.00037099]
[1609566865778,0.00041264,29515.0,29512.0,0.00037099]
[1609566866079,0.00041264,29515.0,29514.0,0.00037099]
[1609566866279,0.00041264,29515.0,29513.0,0.00037099]
[1609566866580,0.00041264,29515.0,29512.0,0.00037099]
[1609566866780,0.18043158,29513.0,29512.0,0.00037099]
[1609566866980,0.18043158,29513.0,29511.0,0.18043158]
[1609566866981,0.89833158,29513.0,29511.0,0.18043158]
[1609566867181,1.00144422,29513.0,29512.0,0.00037099]
[1609566867381,0.28354422,29513.0,29512.0,0.00037099]
[1609566867582,0.28354422,29513.0,29512.0,4.92817099]
[1609566867781,0.28354422,29513.0,29512.0,4.9278]
[1609566867986,0.28354422,29513.0,29512.0,0.00037101]
[1609566868584,0.28354422,29513.0,29510.0,3.90597101]
[1609566868782,0.28354422,29513.0,29512.0,0.00037101]
[1609566868982,0.00041267,29512.0,29511.0,0.00037101]
[1609566869184,0.28784678,29513.0,29510.0,3.9056]
[1609566869484,0.00041267,29512.0,29511.0,0.00037102]
[1609566871885,0.00041267,29512.0,29510.0,3.9056]
[1609566872086,0.00041267,29512.0,29511.0,0.00037102]
[1609566874188,0.00041267,29512.0,29510.0,3.9056]
[1609566874589,0.00041267,29512.0,29511.0,0.00037103]
[1609566876893,0.00041267,29512.0,29507.0,0.04164235]
[1609566877091,0.00041267,29512.0,29511.0,0.00037129]
[1609566877494,0.00041267,29512.0,29508.0,0.00037129]
[1609566877694,0.00041267,29512.0,29507.0,0.00037129]
[1609566877895,0.00470093,29512.0,29509.0,0.00037129]
[1609566878094,0.00470093,29512.0,29508.0,0.00037129]
[1609566878294,1.0,29511.0,29508.0,0.00037129]
[1609566878495,1.00041273,29511.0,29507.0,0.00037129]
[1609566878695,0.00041273,29510.0,29509.0,0.00037129]
[1609566878896,0.00041273,29510.0,29508.0,0.00037131]
[1609566879297,0.00041273,29510.0,29505.0,4.9436]
[1609566879298,0.01509942,29510.0,29506.0,0.00037131]
[1609566879498,0.18043158,29507.0,29499.0,1.8094346]
[1609566879697,4.61498158,29507.0,29499.0,1.8094346]
[1609566880098,0.00041275,29506.0,29500.0,0.04164732]
[1609566880298,1.00041275,29506.0,29500.0,0.04164732]
[1609566880797,0.00041281,29505.0,29499.0,0.04165189]
[1609566880997,0.00041281,29505.0,29501.0,0.04165206]
[1609566881298,0.00041281,29505.0,29499.0,0.04165198]
[1609566881499,0.18043158,29500.0,29499.0,0.04165198]
[1609566881698,0.18043158,29500.0,29498.0,1.80899049]
[1609566881898,0.18084439,29500.0,29499.0,0.04165204]
[1609566882100,0.18043158,29500.0,29499.0,0.04165204]
[1609566882499,0.18084439,29500.0,29499.0,0.04165204]
[1609566883099,0.18084439,29500.0,29497.0,0.04165322]
[1609566883499,0.18043158,29500.0,29497.0,0.04165322]
[1609566884502,0.18043158,29500.0,29497.0,0.04128184]
[1609566885100,0.00041282,29499.0,29497.0,0.04128184]
[1609566888903,0.18043158,29500.0,29497.0,0.04128184]
[1609566889503,0.18043158,29500.0,29499.0,0.18043158]
[1609566890007,0.18043158,29500.0,29499.0,0.22208237]
[1609566891409,0.18084438,29500.0,29499.0,0.22208237]
[1609566891608,0.18043158,29500.0,29499.0,0.22208237]
[1609566891809,0.18084439,29500.0,29499.0,0.22208237]
[1609566893210,0.18084439,29500.0,29499.0,5.74878237]
[1609566894511,0.18043158,29500.0,29499.0,5.74878237]
[1609566894710,0.18084438,29500.0,29499.0,5.74878237]
[1609566896315,0.18043158,29500.0,29499.0,5.74878237]
[1609566902727,0.15632,29501.0,29499.0,5.74878237]
[1609566902927,0.16905,29507.0,29499.0,5.74878237]
[1609566903127,0.16905,29507.0,29500.0,0.04165022]
[1609566903327,0.10466288,29509.0,29500.0,0.04165022]
[1609566903530,0.00041278,29506.0,29500.0,0.04165022]
[1609566903730,0.15187,29506.0,29504.0,0.18043158]
[1609566903930,0.00041278,29505.0,29504.0,0.18043158]
[1609566904431,0.00041278,29505.0,29504.0,0.18080294]
[1609566905632,0.18084436,29505.0,29504.0,0.18080294]
[1609566909236,0.18084436,29505.0,29504.0,0.18080293]
[1609566909738,0.15187,29506.0,29504.0,0.18080293]
[1609566909938,0.0146335,29511.0,29504.0,5.77660293]
[1609566910340,0.00041273,29510.0,29505.0,1.00037131]
[1609566910741,0.00041273,29510.0,29506.0,0.00037131]
[1609566911642,0.00041271,29512.0,29506.0,0.00037131]
[1609566911842,0.45503158,29513.0,29509.0,0.80623158]
[1609566912042,0.00041272,29511.0,29509.0,0.80623158]
[1609566912443,0.00041272,29512.0,29510.0,0.00037131]
[1609566912643,0.45503158,29513.0,29510.0,0.00037131]
[1609566913144,0.00041271,29512.0,29510.0,0.00037131]
[1609566914245,0.00041271,29512.0,29511.0,1.0]
[1609566914446,0.45503158,29513.0,29511.0,1.0]
[1609566914749,0.45503158,29513.0,29511.0,1.00037129]
[1609566914946,0.45503158,29513.0,29512.0,0.00037129]
[1609566915248,0.45544427,29513.0,29512.0,0.00037129]
[1609566915748,0.27501269,29513.0,29512.0,0.18080287]
[1609566916250,0.27501269,29513.0,29512.0,1.18080287]
[1609566916549,0.2746,29513.0,29512.0,1.18080287]
[1609566918351,0.2746,29513.0,29512.0,0.18080287]
[1609566920254,0.2746,29513.0,29512.0,0.92310287]
[1609566924259,0.2746,29513.0,29512.0,1.92310287]
[1609566924459,0.16594,29514.0,29512.0,1.92310287]
[1609566925060,0.18043158,29516.0,29513.0,0.00037125]
[1609566925863,0.18043158,29516.0,29515.0,0.18043158]
[1609566926362,0.18043158,29516.0,29515.0,0.18080281]
[1609566929566,0.18043158,29516.0,29515.0,0.18043158]
[1609566930367,0.18043158,29516.0,29515.0,4.61173158]
[1609566931567,0.1796689,29516.0,29515.0,4.61210281]
[1609566931868,0.1796689,29516.0,29515.0,4.61173158]
[1609566932068,0.1796689,29516.0,29515.0,4.61210281]
[1609566938280,0.18008154,29516.0,29515.0,5.61210281]
[1609566941085,0.1796689,29516.0,29515.0,5.61210281]
[1609566941288,0.1796689,29516.0,29515.0,1.18080281]
[1609566942689,0.13051,29520.0,29517.0,4.6911]
[1609566942890,0.0004126,29519.0,29517.0,4.6911]
[1609566943089,0.0004126,29519.0,29518.0,0.00037024]
[1609566943892,0.0004126,29519.0,29518.0,0.18080182]
[1609566944290,0.0004126,29519.0,29518.0,1.18080182]
[1609566946296,0.0004126,29519.0,29518.0,0.18080182]
[1609566948297,0.0004126,29519.0,29518.0,1.18080182]
[1609566952101,0.13051,29520.0,29518.0,1.18080182]
[1609566952301,0.18043158,29521.0,29518.0,1.18080182]
[1609566952703,0.18043158,29521.0,29519.0,0.00037022]
[1609566952904,0.00041257,29520.0,29519.0,0.00037022]
[1609566953805,0.14566257,29520.0,29519.0,0.00037022]
[1609566955912,0.14566257,29520.0,29519.0,4.44697022]
[1609566957015,0.14525,29520.0,29519.0,4.44697022]
[1609566957314,0.14525,29520.0,29519.0,4.48822585]
[1609566958415,0.14525,29520.0,29519.0,5.48822585]
[1609566958916,0.01473903,29525.0,29519.0,5.48822473]
[1609566959417,0.01473903,29525.0,29520.0,0.00037019]
[1609566959418,0.00041254,29524.0,29520.0,0.00037019]
[1609566960018,0.00041254,29524.0,29523.0,0.18043158]
[1609566960219,0.10794254,29524.0,29523.0,0.18043158]
[1609566960418,0.10794254,29524.0,29523.0,0.18080177]
[1609566960620,0.10794254,29524.0,29523.0,0.97610177]
[1609566961319,0.10753,29524.0,29523.0,0.97610177]
[1609566964425,0.10753,29524.0,29523.0,1.97610177]
[1609566965326,0.00430128,29527.0,29523.0,1.97610177]
[1609566965727,0.00430128,29527.0,29524.0,0.00037015]
[1609566966030,0.00430128,29527.0,29526.0,0.18043158]
[1609566966328,0.00430128,29527.0,29526.0,1.18043158]
[1609566966528,0.00430128,29527.0,29526.0,1.18080173]
[1609566966729,0.01475198,29530.0,29526.0,1.18080173]
[1609566967029,0.01475198,29530.0,29527.0,0.00037015]
[1609566967830,0.01475198,29530.0,29526.0,1.18043158]
[1609566968031,0.01475198,29530.0,29529.0,0.18043158]
[1609566968231,0.01475198,29530.0,29529.0,0.73753158]
[1609566969932,0.01475198,29530.0,29529.0,0.73790172]
[1609566970332,0.76125478,29531.0,29529.0,1.73790172]
[1609566970333,0.12569,29531.0,29529.0,1.73790172]
[1609566970533,0.01474739,29533.0,29529.0,1.73790172]
[1609566970733,0.01474739,29533.0,29530.0,0.00037012]
[1609566971632,0.00041243,29532.0,29530.0,0.00037012]
[1609566971832,0.16742,29532.0,29530.0,0.00037012]
[1609566972333,0.16742,29532.0,29531.0,1.0]
[1609566972634,0.16742,29532.0,29531.0,1.00037009]
[1609566974538,0.16742,29532.0,29531.0,5.35397009]
[1609566977043,0.00429281,29541.0,29531.0,5.35397009]
[1609566977243,0.10609181,29542.0,29531.0,5.35397009]
[1609566977642,0.00041242,29541.0,29532.0,0.00037009]
[1609566978141,0.12534242,29541.0,29540.0,0.18043158]
[1609566978342,0.12534242,29541.0,29540.0,0.72243158]
[1609566981848,0.12493,29541.0,29540.0,0.72243158]
[1609566983348,0.15463,29541.0,29540.0,0.72243158]
[1609566985549,0.15463,29541.0,29540.0,1.72243158]
[1609566985752,0.16628,29541.0,29540.0,1.72243158]
[1609566986349,0.16628,29541.0,29540.0,7.7228016]
[1609566986549,0.16628,29541.0,29540.0,6.7228016]
[1609566986748,0.16628,29541.0,29540.0,6.8254016]
[1609566987149,0.16628,29541.0,29540.0,6.2834016]
[1609566987351,0.16628,29541.0,29540.0,6.1808016]
[1609566987552,0.16422165,29541.0,29540.0,6.1808016]
[1609566987950,0.16422165,29541.0,29540.0,6.7936016]
[1609566988352,0.16422165,29541.0,29540.0,0.7936016]
[1609566989150,0.16422165,29541.0,29540.0,1.8963016]
[1609566989353,0.1327,29547.0,29540.0,1.8963016]
[1609566989752,0.1327,29547.0,29541.0,0.00036997]
[1609566990153,0.1327,29547.0,29546.0,0.18043158]
[1609566990354,0.1327,29547.0,29546.0,6.96033158]
[1609566990555,0.1327,29547.0,29546.0,6.96070151]
[1609566991054,0.1327,29547.0,29546.0,6.96033158]
[1609566992355,2.10448392,29549.0,29546.0,1.96033158]
[1609566992556,2.10448392,29549.0,29546.0,2.18043158]
[1609566992757,1.88098392,29549.0,29547.0,0.00036992]
[1609566992956,1.78028392,29549.0,29547.0,0.00036992]
[1609566993158,1.68018392,29549.0,29547.0,0.00036992]
[1609566993358,1.66068392,29549.0,29547.0,0.00036992]
[1609566993556,0.90288392,29549.0,29547.0,0.00036992]
[1609566993756,2.78175589,29561.0,29547.0,0.00036992]
[1609566993956,2.78175589,29561.0,29560.0,5.822]
[1609566994157,2.78175589,29561.0,29560.0,6.12068158]
[1609566994357,2.78175589,29561.0,29560.0,6.12105132]
[1609566994557,2.78175589,29561.0,29560.0,7.12105132]
[1609566994558,2.76710649,29561.0,29560.0,7.12105132]
[1609566995157,2.76710649,29561.0,29560.0,7.22185132]
[1609566995357,2.76710649,29561.0,29560.0,0.39985132]
[1609566995559,2.76710649,29561.0,29560.0,6.04975132]
[1609566997262,2.76710649,29561.0,29560.0,5.94895132]
[1609566998265,2.76710649,29561.0,29560.0,6.05045132]
[1609567000065,2.76710649,29561.0,29560.0,12.05045132]
[1609567000865,2.76710649,29561.0,29560.0,12.05008158]
[1609567003066,2.76710649,29561.0,29560.0,6.40018158]
[1609567003268,1.60010649,29561.0,29560.0,6.40018158]
[1609567003468,1.60010649,29561.0,29560.0,7.40018158]
[1609567003866,1.51710649,29561.0,29560.0,7.40018158]
[1609567004066,1.51710649,29561.0,29560.0,8.40018158]
[1609567004466,1.51710649,29561.0,29560.0,7.40018158]
[1609567005067,1.51710649,29561.0,29560.0,6.40018158]
[1609567005266,1.51710649,29561.0,29560.0,8.40018158]
[1609567006368,1.51710649,29561.0,29560.0,6.40018158]
[1609567008070,1.51710649,29561.0,29560.0,1.40018158]
[1609567008268,1.51710649,29561.0,29560.0,6.40018158]
[1609567010068,1.51710649,29561.0,29560.0,0.40018158]
[1609567010670,1.35010649,29561.0,29560.0,0.40018158]
[1609567011271,1.33310649,29561.0,29560.0,0.40018158]
[1609567011473,1.33310649,29561.0,29560.0,1.40018158]
[1609567012072,1.24910649,29561.0,29560.0,7.40018158]
[1609567012271,1.16510649,29561.0,29560.0,7.40018158]
[1609567012471,1.16510649,29561.0,29560.0,6.40018158]
[1609567014078,1.16510649,29561.0,29560.0,0.40018158]
[1609567014876,1.08061846,29561.0,29560.0,0.40055239]
[1609567015076,1.08061846,29561.0,29560.0,4.55185239]
[1609567015378,1.07620649,29561.0,29560.0,4.55185239]